bitfinex/quotes_BTCUSD_20250115
["timestamp","ask_amount","ask_price","bid_price","bid_amount"]
[1736926237857,0.00174694,97719.0,97718.0,0.2859]
[1736926238409,0.00174694,97719.0,97718.0,0.2789]
[1736926238755,0.00174694,97719.0,97718.0,0.2819]
[1736926238966,0.01779892,97719.0,97718.0,0.2819]
[1736926240054,0.01779892,97719.0,97718.0,0.2799]
[1736926240493,0.01779892,97719.0,97718.0,0.2819]
[1736926241458,0.00644322,97730.0,97729.0,0.1]
[1736926241619,0.11067014,97730.0,97729.0,0.1]
[1736926242023,0.12672345,97730.0,97729.0,0.1]
[1736926242323,0.12672345,97730.0,97729.0,0.08699998]
[1736926243162,0.11067014,97730.0,97729.0,0.08699998]
[1736926243930,0.11267014,97730.0,97729.0,0.08699998]
[1736926245379,0.11267014,97730.0,97729.0,0.16429998]
[1736926245587,0.11267014,97730.0,97729.0,0.26429998]
[1736926245765,0.11367014,97730.0,97729.0,0.26429998]
[1736926247401,0.12972136,97730.0,97729.0,0.25129996]
[1736926249884,0.12972136,97730.0,97729.0,0.25309273]
[1736926250068,0.13057506,97730.0,97729.0,0.25309273]
[1736926251851,0.13057506,97730.0,97729.0,0.07579273]
[1736926252061,0.14364494,97730.0,97729.0,0.07579273]
[1736926252247,0.13057506,97730.0,97729.0,0.07579273]
[1736926252468,0.13057506,97730.0,97729.0,0.06279271]
[1736926253078,0.11452384,97730.0,97729.0,0.06279271]
[1736926253308,0.11252384,97730.0,97729.0,0.16279271]
[1736926253717,0.11352384,97730.0,97729.0,0.16279271]
[1736926254129,0.11452384,97730.0,97729.0,0.06279271]
[1736926254336,0.11652384,97730.0,97729.0,0.06279271]
[1736926254837,0.11552384,97730.0,97729.0,0.06279271]
[1736926255196,0.11652384,97730.0,97729.0,0.06279271]
[1736926255573,0.1281886,97730.0,97717.0,0.26746471]
[1736926255777,0.1281886,97730.0,97694.0,0.0908178]
[1736926255778,0.10422692,97729.0,97725.0,0.1]
[1736926256042,0.10422692,97729.0,97724.0,0.204656]
[1736926256191,0.10422692,97729.0,97718.0,0.06279271]
[1736926256393,0.10422692,97729.0,97717.0,0.1]
[1736926256394,0.204649,97728.0,97717.0,0.06279271]
[1736926256618,0.10422692,97727.0,97717.0,0.06279271]
[1736926256824,0.204655,97725.0,97717.0,0.06279271]
[1736926257179,0.10422692,97724.0,97717.0,0.06279271]
[1736926257384,0.20467,97718.0,97717.0,0.06279271]
[1736926257591,0.10422692,97718.0,97717.0,0.06279271]
[1736926257997,0.10220028,97718.0,97705.0,0.10179319]
[1736926258199,0.10220028,97718.0,97706.0,0.204695]
[1736926258200,0.204672,97717.0,97706.0,0.204695]
[1736926258414,0.10422692,97716.0,97706.0,0.204695]
[1736926258817,0.10422692,97716.0,97705.0,0.10179319]
[1736926258818,0.204676,97715.0,97705.0,0.10179319]
[1736926259051,0.10422692,97714.0,97713.0,0.06279271]
[1736926259887,0.10422692,97714.0,97713.0,0.16279271]
[1736926260035,0.12028303,97714.0,97713.0,0.16279271]
[1736926260606,0.12028303,97714.0,97713.0,0.06279271]
[1736926260809,0.12128303,97714.0,97713.0,0.16279271]
[1736926261007,0.12128303,97714.0,97713.0,0.06279271]
[1736926261263,0.12128303,97714.0,97711.0,0.06279271]
[1736926261718,0.12128303,97714.0,97707.0,0.204691]
[1736926262295,0.12018303,97714.0,97707.0,0.1]
[1736926262474,0.204676,97716.0,97705.0,0.00179319]
[1736926262475,0.204691,97708.0,97705.0,0.00179319]
[1736926262687,0.204695,97706.0,97705.0,0.00179319]
[1736926262855,0.30892192,97706.0,97705.0,0.00179319]
[1736926263494,0.10422692,97706.0,97705.0,0.00179319]
[1736926264111,0.10522692,97706.0,97705.0,0.00179319]
[1736926264288,0.10510377,97706.0,97705.0,0.00179319]
[1736926265487,0.12116008,97706.0,97705.0,0.00179319]
[1736926265830,0.10510377,97706.0,97705.0,0.00179319]
[1736926269900,0.12116099,97706.0,97705.0,0.00179319]
[1736926272234,0.13183247,97706.0,97705.0,0.00179319]
[1736926273014,0.11577525,97706.0,97705.0,0.00179319]
[1736926273232,0.10510377,97706.0,97705.0,0.00179319]
[1736926279545,0.12116096,97706.0,97705.0,0.00179319]
[1736926286686,0.12201486,97706.0,97705.0,0.00179319]
[1736926288183,0.12201486,97706.0,97705.0,0.0645859]
[1736926289264,0.10595767,97706.0,97705.0,0.0645859]
[1736926290011,0.10595767,97706.0,97705.0,0.00179319]
[1736926290686,0.10595767,97706.0,97705.0,0.0645859]
[1736926290890,0.11663007,97706.0,97705.0,0.00179319]
[1736926291223,0.10595767,97706.0,97705.0,0.00179319]
[1736926292194,0.13702234,97706.0,97705.0,0.00179319]
[1736926292397,0.10595767,97706.0,97705.0,0.00179319]
[1736926293822,0.15175767,97706.0,97705.0,0.00179319]
[1736926294365,0.10595767,97706.0,97705.0,0.00179319]
[1736926295722,0.12201562,97706.0,97705.0,0.00179319]
[1736926301256,0.21402641,97706.0,97705.0,0.00179319]
[1736926302358,0.2600318,97706.0,97705.0,0.00179319]
[1736926302962,0.49005872,97706.0,97705.0,0.00179319]
[1736926303163,0.49700077,97706.0,97705.0,0.00179319]
[1736926303512,0.39277385,97706.0,97705.0,0.00179319]
[1736926303721,0.25475767,97706.0,97705.0,0.00179319]
[1736926303933,0.40475767,97706.0,97705.0,0.00179319]
[1736926304555,0.38075767,97706.0,97705.0,0.00179319]
[1736926304769,0.15875767,97706.0,97705.0,0.00279319]
[1736926305202,0.15875767,97706.0,97705.0,0.00179319]
[1736926305203,0.15075767,97706.0,97705.0,0.00179319]
[1736926305373,0.11495767,97706.0,97705.0,0.00279319]
[1736926305964,0.11295767,97706.0,97705.0,0.00279319]
[1736926307298,0.10495767,97706.0,97702.0,3.11077601]
[1736926307505,0.10422692,97703.0,97702.0,3.11077601]
[1736926308770,0.11022692,97703.0,97702.0,3.11177601]
[1736926309014,0.12028596,97703.0,97702.0,3.11077601]
[1736926309229,0.12228596,97703.0,97702.0,3.11077601]
[1736926309858,0.12028596,97703.0,97702.0,3.11077601]
[1736926310462,0.12628596,97703.0,97702.0,3.11177601]
[1736926310664,0.35657831,97703.0,97702.0,3.11177601]
[1736926310795,0.35657831,97703.0,97702.0,3.11173601]
[1736926311195,0.35057831,97703.0,97702.0,3.11073601]
[1736926311770,0.35657831,97703.0,97702.0,3.11173601]
[1736926312055,0.35857831,97703.0,97702.0,3.11153601]
[1736926312253,0.35857831,97703.0,97702.0,3.11133601]
[1736926312425,0.34251927,97703.0,97702.0,3.09833599]
[1736926312643,0.34251927,97703.0,97702.0,0.00279151]
[1736926313270,0.11222692,97703.0,97702.0,0.00279151]
[1736926317124,0.1282864,97703.0,97702.0,0.00279151]
[1736926317526,0.204704,97702.0,97700.0,0.09249121]
[1736926317641,0.10422692,97701.0,97700.0,0.09249121]
[1736926318947,0.33442131,97701.0,97700.0,0.09179121]
[1736926320337,0.33642131,97701.0,97700.0,0.09149121]
[1736926320588,0.33642131,97701.0,97700.0,0.09119121]
[1736926320762,0.33642131,97701.0,97700.0,0.09089121]
[1736926321027,0.34142131,97701.0,97700.0,0.09089121]
[1736926321433,0.48887793,97701.0,97700.0,0.09089121]
[1736926321844,0.25868354,97701.0,97700.0,0.09070822]
[1736926322057,0.40868354,97701.0,97700.0,0.09040822]
[1736926322262,0.32442692,97701.0,97700.0,0.09040822]
[1736926322673,0.32442692,97701.0,97700.0,0.09010822]
[1736926323101,0.32242692,97701.0,97700.0,0.09190141]
[1736926323456,0.34483354,97701.0,97700.0,0.07890139]
[1736926323653,0.34983354,97701.0,97700.0,0.07890139]
[1736926324055,0.32683354,97701.0,97700.0,0.07890139]
[1736926324414,0.11122692,97701.0,97700.0,0.07860139]
[1736926325236,0.10622692,97701.0,97700.0,0.07860139]
[1736926326059,0.33636314,97701.0,97700.0,0.07860139]
[1736926326463,0.33636314,97701.0,97700.0,0.07830139]
[1736926326683,0.34036314,97701.0,97700.0,0.07830139]
[1736926326888,0.11022692,97701.0,97700.0,0.07830139]
[1736926327421,0.11022692,97701.0,97700.0,0.06530137]
[1736926327623,0.12628708,97701.0,97700.0,0.06530137]
[1736926327825,0.12428708,97701.0,97700.0,0.06530137]
[1736926328263,0.12428708,97701.0,97700.0,0.06500137]
[1736926328429,0.24287694,97701.0,97700.0,0.06500137]
[1736926328968,0.14728708,97701.0,97700.0,0.06500137]
[1736926329166,0.29728708,97701.0,97700.0,0.06500137]
[1736926329389,0.29928708,97701.0,97700.0,0.06500137]
[1736926329713,0.29928708,97701.0,97700.0,0.06470137]
[1736926329936,0.57545601,97701.0,97700.0,0.06470137]
[1736926330355,0.67968293,97701.0,97700.0,0.06470137]
[1736926330962,0.403514,97701.0,97700.0,0.06470137]
[1736926331418,0.403514,97701.0,97700.0,0.06440137]
[1736926332349,0.403514,97701.0,97700.0,0.05140135]
[1736926333167,0.28322692,97701.0,97700.0,0.05110135]
[1736926333752,0.28122692,97701.0,97700.0,0.05110135]
[1736926333957,0.27722692,97701.0,97700.0,0.05110135]
[1736926334362,0.28622692,97701.0,97700.0,0.05210135]
[1736926335139,0.28708092,97701.0,97700.0,0.05210135]
[1736926336188,0.38534492,97701.0,97700.0,0.05210135]
[1736926337364,0.38534492,97701.0,97700.0,0.03910133]
[1736926337794,0.42255221,97701.0,97700.0,0.03910133]
[1736926339298,0.43861377,97701.0,97700.0,0.03910133]
[1736926340933,0.43861377,97701.0,97700.0,0.03880133]
[1736926341342,0.43861377,97701.0,97700.0,0.03850133]
[1736926341886,0.44931696,97701.0,97700.0,0.03850133]
[1736926342240,0.44931696,97701.0,97700.0,0.03720133]
[1736926342471,0.44931696,97701.0,97700.0,0.02420131]
[1736926345268,0.4332554,97701.0,97700.0,0.02420131]
[1736926347498,0.4332554,97701.0,97700.0,0.01120129]
[1736926347901,0.4332554,97701.0,97700.0,0.01090129]
[1736926348217,0.5603994,97701.0,97700.0,0.01090129]
[1736926348867,0.5603994,97701.0,97700.0,0.01050129]
[1736926349404,0.57646139,97701.0,97700.0,0.01050129]
[1736926349604,0.57646139,97701.0,97700.0,0.01020129]
[1736926350241,0.57646139,97701.0,97691.0,0.01916202]
[1736926350242,0.24193229,97692.0,97691.0,0.01916202]
[1736926350443,0.24193229,97692.0,97691.0,0.01965506]
[1736926350444,0.34615921,97692.0,97691.0,0.01965506]
[1736926350825,0.03720729,97687.0,97681.0,0.04590431]
[1736926351040,0.48197292,97682.0,97681.0,0.03133148]
[1736926351475,0.49803654,97682.0,97681.0,0.03133148]
[1736926352133,0.38524383,97682.0,97681.0,0.03133148]
[1736926352338,0.54433613,97682.0,97681.0,0.01833146]
[1736926352556,0.52827251,97682.0,97681.0,0.01833146]
[1736926353194,0.52827251,97682.0,97681.0,0.01814846]
[1736926353399,0.53027251,97682.0,97681.0,0.01814846]
[1736926353603,0.63138526,97682.0,97681.0,0.01814846]
[1736926353775,0.62938526,97682.0,97681.0,0.01814846]
[1736926354184,0.63338526,97682.0,97681.0,0.01814846]
[1736926354593,0.62938526,97682.0,97681.0,0.01814846]
[1736926354843,0.51150753,97682.0,97681.0,0.01814846]
[1736926355013,0.36550753,97682.0,97681.0,0.09554846]
[1736926355222,0.34506522,97682.0,97681.0,0.09554846]
[1736926355620,0.35406522,97682.0,97681.0,0.09284846]
[1736926356022,0.37012892,97682.0,97681.0,0.09284846]
[1736926356227,0.36612892,97682.0,97681.0,0.09284846]
[1736926356630,0.37012892,97682.0,97681.0,0.09284846]
[1736926356787,0.37012892,97682.0,97681.0,0.08844846]
[1736926356994,0.35576841,97682.0,97681.0,0.08844846]
[1736926357227,0.35176841,97682.0,97681.0,0.08844846]
[1736926357496,0.35976841,97682.0,97681.0,0.07544844]
[1736926358500,0.35976841,97682.0,97681.0,0.07724205]
[1736926358746,0.36062251,97682.0,97681.0,0.07724205]
[1736926360309,0.37668609,97682.0,97681.0,0.07724205]
[1736926361136,0.60673871,97682.0,97681.0,0.07724205]
[1736926361534,0.75673871,97682.0,97681.0,0.00179361]
[1736926361752,0.83997319,97682.0,97681.0,0.00179361]
[1736926362121,0.60992057,97682.0,97681.0,0.00179361]
[1736926362349,0.40952,97675.0,97672.0,0.0402002]
[1736926362552,0.10422692,97673.0,97672.0,0.0402002]
[1736926363368,0.10422692,97673.0,97672.0,0.0356002]
[1736926364155,0.10622692,97673.0,97672.0,0.1130002]
[1736926364404,0.10422692,97673.0,97672.0,0.1130002]
[1736926364789,0.11022692,97673.0,97672.0,0.1130002]
[1736926364998,0.10422692,97673.0,97672.0,0.1126002]
[1736926365826,0.10622692,97673.0,97672.0,0.1126002]
[1736926366208,0.19828844,97673.0,97672.0,0.1126002]
[1736926366379,0.19928844,97673.0,97672.0,0.1126002]
[1736926366849,0.19628844,97673.0,97672.0,0.1126002]
[1736926367003,0.19928844,97673.0,97672.0,0.1126002]
[1736926367183,0.10722692,97673.0,97672.0,0.1126002]
[1736926367390,0.10722692,97673.0,97672.0,0.09960018]
[1736926367791,0.12329087,97673.0,97672.0,0.09960018]
[1736926369025,0.12329087,97673.0,97672.0,0.09520018]
[1736926371176,0.12329087,97673.0,97672.0,0.09699379]
[1736926372390,0.21536696,97673.0,97672.0,0.08399377]
[1736926373030,0.19630301,97673.0,97672.0,0.08399377]
[1736926373214,0.19930301,97673.0,97672.0,0.08399377]
[1736926373661,0.10722692,97673.0,97672.0,0.08399377]
[1736926374853,0.24531921,97673.0,97672.0,0.08399377]
[1736926376267,0.24231921,97673.0,97672.0,0.08399377]
[1736926376399,0.24531921,97673.0,97672.0,0.08399377]
[1736926377095,0.10722692,97673.0,97672.0,0.08399377]
[1736926377415,0.12329044,97673.0,97672.0,0.07099375]
[1736926379816,0.12029044,97673.0,97672.0,0.07099375]
[1736926379988,0.12329044,97673.0,97672.0,0.07099375]
[1736926380155,0.13399363,97673.0,97672.0,0.07099375]
[1736926380352,0.31811668,97673.0,97672.0,0.07099375]
[1736926381610,0.31811668,97673.0,97672.0,0.07009375]
[1736926382801,0.30205316,97673.0,97672.0,0.07009375]
[1736926383001,0.30290736,97673.0,97672.0,0.06959375]
[1736926383521,0.30290736,97673.0,97672.0,0.05659373]
[1736926384136,0.30290736,97673.0,97672.0,0.05639373]
[1736926386782,0.30290736,97673.0,97672.0,0.05569373]
[1736926387385,0.11878431,97673.0,97672.0,0.04269371]
[1736926392387,0.11878431,97673.0,97672.0,0.02969369]
[1736926393684,0.11878431,97673.0,97672.0,0.02869369]
[1736926394394,0.11578431,97673.0,97672.0,0.02869369]
[1736926394595,0.11978431,97673.0,97672.0,0.02869369]
[1736926397626,0.11978431,97673.0,97672.0,0.01569367]
[1736926399479,0.11978431,97673.0,97672.0,0.00179361]
[1736926399946,0.11978431,97673.0,97672.0,0.00149361]
[1736926402026,0.11978431,97673.0,97672.0,0.00139361]
[1736926402493,0.204766,97672.0,97667.0,0.06959359]
[1736926402696,0.10422692,97671.0,97667.0,0.06959359]
[1736926402900,0.10422692,97671.0,97667.0,0.06759359]
[1736926403758,0.204766,97672.0,97665.0,0.00179214]
[1736926403759,0.10422692,97668.0,97665.0,0.00179214]
[1736926404836,0.30900192,97668.0,97665.0,0.00179214]
[1736926405571,0.10422692,97668.0,97665.0,0.10179214]
[1736926405746,0.10422692,97668.0,97665.0,0.30657314]
[1736926405932,0.10522692,97668.0,97666.0,0.0812]
[1736926406277,0.10922692,97668.0,97666.0,0.0812]
[1736926406415,0.10522692,97668.0,97666.0,0.0812]
[1736926406776,0.10922692,97668.0,97666.0,0.0802]
[1736926406925,0.10522692,97668.0,97666.0,0.0802]
[1736926407124,0.10422692,97668.0,97666.0,0.0802]
[1736926407557,0.10522692,97668.0,97666.0,0.0802]
[1736926408006,0.10422692,97668.0,97666.0,0.0802]
[1736926408357,0.10422692,97668.0,97666.0,0.0812]
[1736926409627,0.10422692,97668.0,97667.0,0.1]
[1736926409777,0.01155739,97673.0,97672.0,0.49405871]
[1736926410084,0.11578431,97673.0,97672.0,0.49405871]
[1736926410287,0.11566109,97673.0,97672.0,0.49405871]
[1736926411420,0.13172369,97673.0,97672.0,0.49405871]
[1736926411618,0.13172369,97673.0,97672.0,0.49505871]
[1736926412051,0.13172369,97673.0,97672.0,0.49405871]
[1736926413069,0.11566109,97673.0,97672.0,0.49405871]
[1736926413654,0.11566109,97673.0,97672.0,0.49505871]
[1736926414431,0.11566109,97673.0,97672.0,0.49405871]
[1736926414768,0.11566109,97673.0,97672.0,0.49505871]
[1736926415316,0.11566109,97673.0,97672.0,0.49405871]
[1736926416177,0.13172385,97673.0,97672.0,0.49405871]
[1736926416683,0.13172385,97673.0,97672.0,0.49505871]
[1736926417762,0.11566109,97673.0,97672.0,0.49505871]
[1736926418387,0.11566109,97673.0,97672.0,0.49685253]
[1736926420072,0.01143417,97673.0,97672.0,0.49685253]
[1736926421011,0.01143417,97673.0,97672.0,0.49585253]
[1736926421293,0.02749701,97673.0,97672.0,0.49685253]
[1736926423095,0.01143417,97673.0,97672.0,0.49585253]
[1736926423312,0.0008542,97673.0,97672.0,0.49685253]
[1736926423759,0.0008542,97673.0,97672.0,0.49585253]
[1736926424179,0.0008542,97673.0,97672.0,0.49785253]
[1736926426077,0.01691691,97673.0,97672.0,0.49785253]
[1736926426277,0.0276201,97673.0,97672.0,0.49785253]
[1736926428236,0.0276201,97673.0,97672.0,0.29308653]
[1736926433167,0.01155739,97673.0,97672.0,0.29308653]
[1736926433965,0.11578431,97673.0,97672.0,0.29308653]
[1736926434180,0.01155739,97673.0,97672.0,0.44308653]
[1736926435330,0.01155739,97673.0,97672.0,0.44108653]
[1736926435730,0.01155739,97673.0,97672.0,0.44208653]
[1736926436196,0.01255739,97673.0,97672.0,0.44108653]
[1736926436632,0.01255739,97673.0,97672.0,0.44308653]
[1736926436803,0.01155739,97673.0,97672.0,0.44308653]
[1736926437020,0.01155739,97673.0,97672.0,0.44108653]
[1736926437224,0.01155739,97673.0,97672.0,0.44308653]
[1736926438807,0.01155739,97673.0,97672.0,0.44708653]
[1736926439215,0.01155739,97673.0,97672.0,0.44108653]
[1736926439610,0.01155739,97673.0,97672.0,0.44308653]
[1736926439967,0.01155739,97673.0,97672.0,0.44408653]
[1736926440188,0.01155739,97673.0,97672.0,0.44308653]
[1736926440687,0.01155739,97673.0,97672.0,0.44708653]
[1736926440891,0.02761876,97673.0,97672.0,0.44708653]
[1736926441110,0.01691557,97673.0,97672.0,0.44708653]
[1736926442587,0.0008542,97673.0,97672.0,0.44708653]
[1736926443999,0.0008542,97673.0,97672.0,0.44689642]
[1736926446269,0.01155739,97673.0,97672.0,0.44689642]
[1736926447538,0.02761875,97673.0,97672.0,0.44689642]
[1736926453022,0.01155739,97673.0,97672.0,0.44689642]
[1736926456838,0.0008542,97673.0,97672.0,0.44689642]
[1736926457735,0.0008542,97673.0,97672.0,0.44489642]
[1736926458141,0.0008542,97673.0,97672.0,0.44689642]
[1736926458544,0.0008542,97673.0,97672.0,0.44489642]
[1736926459091,0.0008542,97673.0,97672.0,0.44689642]
[1736926460479,0.01691524,97673.0,97672.0,0.44689642]
[1736926463002,0.0008542,97673.0,97672.0,0.44689642]
[1736926464262,0.01155739,97673.0,97672.0,0.44689642]
[1736926467383,0.02761882,97673.0,97672.0,0.44689642]
[1736926467581,0.01691563,97673.0,97672.0,0.44689642]
[1736926473594,0.0008542,97673.0,97672.0,0.44689642]
[1736926476685,0.01691524,97673.0,97672.0,0.44689642]
[1736926478665,0.48370766,97715.0,97714.0,1.36665285]
[1736926478811,0.59385458,97715.0,97714.0,1.36665285]
[1736926479013,0.79857987,97715.0,97714.0,1.36665285]
[1736926479615,0.48787221,97715.0,97714.0,1.36665285]
[1736926479831,0.50187221,97715.0,97714.0,1.36765285]
[1736926480457,0.52255613,97715.0,97714.0,1.36765285]
[1736926481629,0.65065613,97715.0,97714.0,1.36765285]
[1736926482219,0.66671561,97715.0,97714.0,1.36765285]
[1736926482447,0.66671561,97715.0,97714.0,1.35465283]
[1736926482623,0.66171561,97715.0,97714.0,1.35365283]
[1736926482776,0.65271561,97715.0,97714.0,1.35365283]
[1736926483010,0.64165613,97715.0,97714.0,1.35465283]
[1736926483391,0.64565613,97715.0,97714.0,1.35365283]
[1736926483793,0.64065613,97715.0,97714.0,1.35365283]
[1736926484116,0.64965613,97715.0,97714.0,1.35365283]
[1736926484934,0.64965613,97715.0,97714.0,0.53789445]
[1736926484935,2.24859345,97715.0,97714.0,0.53789445]
[1736926485136,0.204764,97673.0,97672.0,0.00179382]
[1736926485340,0.30899092,97673.0,97672.0,0.00179382]
[1736926485762,0.36095801,97673.0,97672.0,0.00179382]
[1736926485999,0.30899092,97673.0,97672.0,0.00179382]
[1736926486581,0.30999092,97673.0,97672.0,0.00179382]
[1736926486826,0.31199092,97673.0,97672.0,0.00179382]
[1736926487374,0.32805428,97673.0,97672.0,0.00179382]
[1736926488673,0.4079461,97673.0,97672.0,0.00179382]
[1736926489482,0.4079461,97673.0,97672.0,0.00129382]
[1736926489883,0.32805428,97673.0,97672.0,0.00129382]
[1736926491286,0.47805428,97673.0,97672.0,0.00129382]
[1736926491454,0.6764197,97673.0,97672.0,0.00129382]
[1736926491696,0.03720729,97666.0,97663.0,0.0491089]
[1736926491872,0.51921321,97666.0,97663.0,0.0491089]
[1736926492246,0.51921321,97666.0,97665.0,0.00129214]
[1736926492452,0.06020729,97664.0,97663.0,0.03740102]
[1736926492651,0.31443421,97664.0,97663.0,0.03740102]
[1736926494183,0.3341374,97664.0,97663.0,0.03740102]
[1736926495730,0.3251374,97664.0,97663.0,0.03740102]
[1736926495961,0.3291374,97664.0,97663.0,0.03740102]
[1736926496120,0.42244864,97664.0,97663.0,0.03740102]
[1736926496342,0.3251374,97664.0,97663.0,0.03740102]
[1736926496541,0.34120551,97664.0,97663.0,0.03740102]
[1736926496742,0.35020551,97664.0,97663.0,0.03740102]
[1736926496954,0.35520551,97664.0,97663.0,0.03740102]
[1736926497296,0.37584942,97664.0,97663.0,0.03740102]
[1736926497470,0.37584942,97664.0,97663.0,0.024401]
[1736926498531,0.60504606,97664.0,97663.0,0.024401]
[1736926498734,0.60504606,97664.0,97663.0,0.02619356]
[1736926499336,0.55914748,97664.0,97663.0,0.02619356]
[1736926500299,0.37584942,97664.0,97663.0,0.02619356]
[1736926500531,0.99756753,97664.0,97663.0,0.02619356]
[1736926500653,1.10179445,97664.0,97663.0,0.02619356]
[1736926501786,1.10179445,97664.0,97663.0,0.02489356]
[1736926502189,0.68436015,97664.0,97663.0,0.02489356]
[1736926502420,0.58013323,97664.0,97663.0,0.02489356]
[1736926502592,0.47648523,97664.0,97663.0,0.02489356]
[1736926502994,0.46735223,97664.0,97663.0,0.02489356]
[1736926503449,0.46735223,97664.0,97663.0,0.01189354]
[1736926504054,0.57157915,97664.0,97663.0,0.01189354]
[1736926504471,0.46735223,97664.0,97663.0,0.01189354]
[1736926504643,0.45479423,97664.0,97663.0,0.01189354]
[1736926507011,0.47086253,97664.0,97663.0,0.01189354]
[1736926507442,0.47086253,97664.0,97644.0,0.05231349]
[1736926507443,0.03720729,97655.0,97654.0,0.04960471]
[1736926507573,0.51923621,97655.0,97654.0,0.04965402]
[1736926508927,0.52823621,97655.0,97654.0,0.04965402]
[1736926509090,0.53223621,97655.0,97654.0,0.04965402]
[1736926510810,0.60595864,97655.0,97654.0,0.05144763]
[1736926511595,0.58295864,97655.0,97654.0,0.05144763]
[1736926511875,0.37815664,97655.0,97654.0,0.05144763]
[1736926512092,0.31381648,97655.0,97654.0,0.05144763]
[1736926512314,0.24009405,97655.0,97654.0,0.05144763]
[1736926512537,0.20112651,97655.0,97654.0,0.03844761]
[1736926512759,0.35923621,97655.0,97654.0,0.03844761]
[1736926516365,0.52530503,97655.0,97654.0,0.03844761]
[1736926517313,0.52530503,97655.0,97654.0,0.02544759]
[1736926517694,0.53600822,97655.0,97654.0,0.02544759]
[1736926517900,0.52700822,97655.0,97654.0,0.02544759]
[1736926518159,0.52300822,97655.0,97654.0,0.02544759]
[1736926518365,0.53200822,97655.0,97654.0,0.02544759]
[1736926518567,0.53600822,97655.0,97654.0,0.02544759]
[1736926518948,0.53200822,97655.0,97654.0,0.02544759]
[1736926519330,0.53600822,97655.0,97654.0,0.02544759]
[1736926522505,0.53600822,97655.0,97654.0,0.01244757]
[1736926523079,0.5429394,97655.0,97654.0,0.01244757]
[1736926524138,0.5437935,97655.0,97654.0,0.01244757]
[1736926525386,0.5397935,97655.0,97654.0,0.01244757]
[1736926525589,0.64402042,97655.0,97654.0,0.01244757]
[1736926525797,0.64902042,97655.0,97654.0,0.01244757]
[1736926526310,0.64002042,97655.0,97654.0,0.01244757]
[1736926526509,0.5447935,97655.0,97654.0,0.01244757]
[1736926526713,0.5357935,97655.0,97654.0,0.01244757]
[1736926527094,0.5447935,97655.0,97654.0,0.01244757]
[1736926527431,0.06020729,97654.0,97644.0,0.12786104]
[1736926527632,0.48204992,97645.0,97644.0,0.05176104]
[1736926527811,0.48832992,97645.0,97644.0,0.05176104]
[1736926529014,0.6721094,97645.0,97644.0,0.05176104]
[1736926529421,0.6851094,97645.0,97644.0,0.05176104]
[1736926529837,0.78933632,97645.0,97644.0,0.05176104]
[1736926530060,0.62615375,97645.0,97644.0,0.05176104]
[1736926531447,0.62215375,97645.0,97644.0,0.05176104]
[1736926531808,0.62615375,97645.0,97644.0,0.05176104]
[1736926532253,0.66355115,97645.0,97644.0,0.05176104]
[1736926532490,0.66355115,97645.0,97644.0,0.03876102]
[1736926532491,1.14938015,97645.0,97644.0,0.03876102]
[1736926532732,1.14038015,97645.0,97644.0,0.03876102]
[1736926532904,1.1600697,97645.0,97644.0,0.02936102]
[1736926533128,1.1600697,97645.0,97644.0,0.00636102]
[1736926533331,1.178127,97645.0,97644.0,0.00636102]
[1736926533531,1.187127,97645.0,97644.0,0.00636102]
[1736926533730,1.56764634,97645.0,97644.0,0.00636102]
[1736926533938,1.56364634,97645.0,97644.0,0.00636102]
[1736926534213,1.57264634,97645.0,97644.0,0.00636102]
[1736926534449,1.55864634,97645.0,97644.0,0.00636102]
[1736926534657,0.0373974,97636.0,97631.0,0.00179214]
[1736926534907,1.26601332,97636.0,97631.0,0.00179214]
[1736926535077,1.26016224,97636.0,97631.0,0.00179214]
[1736926536392,1.26916224,97636.0,97631.0,0.00179214]
[1736926536532,1.65368158,97636.0,97631.0,0.00179214]
[1736926536726,1.65768158,97636.0,97631.0,0.00179214]
[1736926537318,1.65768158,97636.0,97635.0,0.02991578]
[1736926537523,2.29921958,97636.0,97635.0,0.01691576]
[1736926537722,2.29838758,97636.0,97635.0,0.01691576]
[1736926538173,2.27299558,97636.0,97635.0,0.01691576]
[1736926538377,0.0603974,97632.0,97631.0,9e-07]
[1736926538584,0.31462432,97632.0,97631.0,9e-07]
[1736926538756,0.34168162,97632.0,97631.0,9e-07]
[1736926540178,0.34168162,97632.0,97626.0,0.03219007]
[1736926540179,0.0603974,97627.0,97626.0,0.03219007]
[1736926540401,0.0603974,97627.0,97624.0,2.1e-07]
[1736926540402,0.0603974,97625.0,97624.0,2.1e-07]
[1736926540601,0.34168162,97625.0,97624.0,2.1e-07]
[1736926541753,0.0373974,97620.0,97619.0,9.235e-05]
[1736926541952,0.83880032,97620.0,97619.0,0.00024056]
[1736926542162,0.99992524,97620.0,97619.0,0.00024056]
[1736926542574,0.0373974,97617.0,97616.0,0.04436091]
[1736926542774,0.98417032,97617.0,97616.0,0.04436091]
[1736926542978,1.07011532,97617.0,97616.0,0.04436091]
[1736926543385,1.07011532,97617.0,97616.0,0.02036091]
[1736926543601,1.17434224,97617.0,97616.0,0.02036091]
[1736926543849,1.18334224,97617.0,97616.0,0.02036091]
[1736926544071,1.05110924,97617.0,97616.0,0.02036091]
[1736926544458,0.3922914,97611.0,97610.0,0.00179319]
[1736926544661,1.54779732,97611.0,97610.0,0.00179319]
[1736926544830,1.76658124,97611.0,97610.0,0.00179319]
[1736926545037,1.75479924,97611.0,97610.0,0.00179319]
[1736926545235,1.35847324,97611.0,97610.0,0.00179319]
[1736926545601,1.25706124,97611.0,97610.0,0.00179319]
[1736926545855,1.26606124,97611.0,97610.0,0.00179319]
[1736926546062,1.04648824,97611.0,97610.0,0.00179319]
[1736926546297,0.52851832,97611.0,97610.0,0.00179319]
[1736926546471,0.46812092,97611.0,97610.0,0.00179319]
[1736926546687,0.46812092,97611.0,97610.0,0.05019319]
[1736926546901,0.49112092,97611.0,97610.0,0.05019319]
[1736926547410,0.49512092,97611.0,97610.0,0.03719317]
[1736926547780,0.53232821,97611.0,97610.0,0.03719317]
[1736926548336,0.54301955,97611.0,97610.0,0.03719317]
[1736926549122,0.50581226,97611.0,97610.0,0.03719317]
[1736926549450,0.54301955,97611.0,97610.0,0.03719317]
[1736926550846,0.54301955,97611.0,97608.0,0.0757]
[1736926550847,0.63831732,97611.0,97608.0,0.0757]
[1736926551047,0.51241421,97610.0,97608.0,0.0757]
[1736926552512,0.41510629,97609.0,97608.0,0.06449086]
[1736926552665,0.73368121,97609.0,97608.0,0.06449086]
[1736926554320,0.74268121,97609.0,97608.0,0.06449086]
[1736926554525,0.21008403,97608.0,97604.0,0.00179256]
[1736926554728,0.91015795,97608.0,97604.0,0.00179256]
[1736926555883,0.91915795,97608.0,97604.0,0.00179256]
[1736926556084,0.92315795,97608.0,97604.0,0.00179256]
[1736926556301,0.75225795,97608.0,97604.0,0.00179256]
[1736926556498,0.76298278,97608.0,97604.0,0.00179256]
[1736926557100,0.76317289,97608.0,97604.0,0.00179256]
[1736926557351,0.76317289,97608.0,97607.0,0.0475152]
[1736926558723,0.33822589,97608.0,97607.0,0.0475152]
[1736926559134,1.33527089,97608.0,97607.0,0.0475152]
[1736926559338,1.04879889,97608.0,97607.0,0.0475152]